bitfinex/quotes_SOLUSD_20230113
["timestamp","ask_amount","ask_price","bid_price","bid_amount"]
[1673582140151,10.0,16.646,16.63,16.4]
[1673582140874,10.0,16.646,16.62,137.45182586]
[1673582141075,10.0,16.646,16.625,29.23070411]
[1673582141824,10.0,16.646,16.627,1.92]
[1673582142961,10.0,16.646,16.623,110.6241]
[1673582143176,10.0,16.646,16.62,16.32]
[1673582143177,37.0,16.645,16.62,16.32]
[1673582143399,10.0,16.644,16.62,16.32]
[1673582143611,37.0,16.643,16.62,16.32]
[1673582143927,10.0,16.642,16.62,16.32]
[1673582144128,37.0,16.641,16.62,16.32]
[1673582144452,20.0,16.641,16.621,41.15070411]
[1673582144854,20.0,16.641,16.623,10.0]
[1673582145182,20.0,16.641,16.624,0.96]
[1673582145404,20.0,16.641,16.625,0.96]
[1673582145595,20.0,16.641,16.626,0.96]
[1673582145807,20.0,16.641,16.625,0.96]
[1673582146010,20.0,16.641,16.621,10.0]
[1673582147079,20.0,16.641,16.623,10.0]
[1673582147490,20.0,16.641,16.623,39.23070411]
[1673582147804,20.0,16.641,16.624,1.92]
[1673582148531,20.0,16.641,16.621,10.0]
[1673582148741,10.0,16.639,16.62,16.46]
[1673582148963,20.0,16.638,16.62,16.46]
[1673582149157,20.0,16.638,16.62,45.69070411]
[1673582149808,20.0,16.638,16.621,1.92]
[1673582150128,20.0,16.638,16.621,11.92]
[1673582151277,20.0,16.638,16.62,16.46]
[1673582151611,17.0,16.637,16.62,16.46]
[1673582152217,20.0,16.638,16.62,16.46]
[1673582152662,20.0,16.638,16.621,0.96]
[1673582152872,20.0,16.638,16.621,1.92]
[1673582154253,39.62109914,16.645,16.621,1.92]
[1673582154557,119.0545,16.646,16.622,0.96]
[1673582154745,10.0,16.645,16.623,0.96]
[1673582154961,10.0,16.645,16.623,232.8342]
[1673582155287,50.56466919,16.644,16.623,232.3342]
[1673582155479,10.0,16.642,16.623,117.8749]
[1673582155696,10.0,16.64,16.623,117.8749]
[1673582156017,17.0,16.639,16.623,117.8749]
[1673582156227,20.0,16.638,16.623,117.8749]
[1673582157692,20.0,16.638,16.62,16.46]
[1673582157897,10.0,16.636,16.62,16.46]
[1673582158539,17.0,16.635,16.614,165.6839785]
[1673582159271,10.0,16.636,16.62,16.4]
[1673582159481,30.0,16.638,16.62,81.88]
[1673582159690,20.0,16.638,16.62,81.88]
[1673582159911,20.0,16.638,16.621,11.92]
[1673582160124,20.0,16.638,16.621,41.15070411]
[1673582160342,20.0,16.638,16.623,10.0]
[1673582160751,20.0,16.638,16.623,39.23070411]
[1673582160971,20.0,16.638,16.624,0.96]
[1673582161909,26.33,16.65,16.625,30.19070411]
[1673582162121,121.6593,16.648,16.63,16.4]
[1673582162335,121.6593,16.648,16.631,1.92]
[1673582162530,121.6593,16.648,16.63,16.4]
[1673582163162,134.9418089,16.647,16.63,16.4]
[1673582163698,124.9418089,16.647,16.63,16.4]
[1673582163913,124.9418089,16.647,16.631,0.96]
[1673582164125,124.9418089,16.647,16.631,1.92]
[1673582166531,124.9418089,16.647,16.63,24.58]
[1673582166854,17.0,16.646,16.63,24.58]
[1673582167051,17.0,16.646,16.627,10.0]
[1673582167257,17.0,16.646,16.626,29.23070411]
[1673582167473,10.0,16.645,16.624,115.6153]
[1673582167677,17.0,16.644,16.625,20.0]
[1673582168129,10.0,16.643,16.625,20.0]
[1673582169173,10.0,16.643,16.625,30.0]
[1673582172616,10.0,16.643,16.625,20.0]
[1673582173783,10.0,16.641,16.624,115.6153]
[1673582174111,20.0,16.64,16.624,115.6153]
[1673582174323,17.0,16.639,16.624,115.6153]
[1673582174637,30.0,16.638,16.624,115.6153]
[1673582176536,20.0,16.638,16.625,29.23070411]
[1673582176710,20.0,16.64,16.625,29.23070411]
[1673582177139,10.0,16.643,16.626,20.96]
[1673582177471,137.6801,16.65,16.627,40.19070411]
[1673582177472,124.9418089,16.647,16.627,40.19070411]
[1673582177679,124.9418089,16.647,16.628,0.96]
[1673582177994,134.9418089,16.647,16.628,40.19070411]
[1673582178421,17.0,16.645,16.629,10.0]
[1673582178725,124.9418089,16.647,16.629,10.0]
[1673582178938,124.9418089,16.647,16.63,25.6]
[1673582179129,124.9418089,16.647,16.631,0.96]
[1673582179773,124.9418089,16.647,16.631,114.6646]
[1673582179982,124.9418089,16.647,16.631,113.7046]
[1673582180192,10.0,16.646,16.631,113.7046]
[1673582181037,10.0,16.646,16.632,108.2241]
[1673582182422,134.9418089,16.647,16.632,108.2241]
[1673582182423,124.9418089,16.647,16.632,108.2241]
[1673582182629,17.0,16.646,16.632,108.2241]
[1673582184185,124.9418089,16.647,16.633,10.0]
[1673582185150,124.9418089,16.647,16.634,50.19070411]
[1673582185338,124.9418089,16.647,16.635,0.96]
[1673582185549,124.9418089,16.647,16.636,0.96]
[1673582185760,124.9418089,16.647,16.636,50.19070411]
[1673582185970,124.9418089,16.647,16.637,29.23070411]
[1673582186198,124.9418089,16.647,16.638,10.96]
[1673582188410,124.9418089,16.647,16.64,24.64]
[1673582188802,124.9418089,16.647,16.641,11.92]
[1673582189249,124.9418089,16.647,16.64,24.64]
[1673582190925,529.4436369,16.659,16.641,10.0]
[1673582191137,529.4436369,16.659,16.643,10.0]
[1673582191453,10.0,16.655,16.642,0.96]
[1673582191660,529.4436369,16.659,16.642,0.96]
[1673582191871,10.0,16.658,16.642,0.96]
[1673582195140,10.0,16.655,16.642,0.96]
[1673582196701,10.0,16.658,16.642,0.96]
[1673582197324,529.4436369,16.659,16.642,0.96]
[1673582197547,10.0,16.658,16.642,0.96]
[1673582200486,529.4436369,16.659,16.643,0.96]
[1673582200696,529.4436369,16.659,16.644,0.96]
[1673582200892,529.4436369,16.659,16.64,16.34]
[1673582201108,21.6322369,16.659,16.642,29.23070411]
[1673582201318,21.6322369,16.659,16.643,0.96]
[1673582201538,21.6322369,16.659,16.644,10.96]
[1673582201752,21.6322369,16.659,16.645,20.96]
[1673582201959,21.6322369,16.659,16.65,81.94]
[1673582202155,178.9341391,16.667,16.652,10.0]
[1673582202371,178.9341391,16.667,16.66,16.39]
[1673582204369,178.9341391,16.667,16.661,1.92]
[1673582205526,48.7620391,16.667,16.661,1.92]
[1673582207547,48.7620391,16.667,16.66,16.39]
[1673582209633,48.2620391,16.667,16.66,16.39]
[1673582209848,48.2620391,16.667,16.661,0.96]
[1673582211528,48.2620391,16.667,16.662,0.96]
[1673582213420,48.2620391,16.667,16.661,0.96]
[1673582213634,48.2620391,16.667,16.661,1.92]
[1673582213834,48.2620391,16.667,16.661,0.96]
[1673582214159,48.2620391,16.667,16.662,0.96]
[1673582214372,48.2620391,16.667,16.66,16.39]
[1673582216048,48.2620391,16.667,16.661,0.96]
[1673582216267,48.2620391,16.667,16.66,16.39]
[1673582216580,48.2620391,16.667,16.662,0.96]
[1673582216895,48.2620391,16.667,16.663,0.96]
[1673582217217,48.2620391,16.667,16.661,10.0]
[1673582217529,48.2620391,16.667,16.662,1.92]
[1673582218270,48.2620391,16.667,16.663,10.0]
[1673582218461,48.2620391,16.667,16.664,20.96]
[1673582218786,34.7986391,16.667,16.664,20.96]
[1673582219308,34.7986391,16.667,16.665,0.96]
[1673582219524,34.7986391,16.667,16.666,0.96]
[1673582219736,34.7986391,16.667,16.666,1.92]
[1673582222786,34.7986391,16.667,16.666,21.92]
[1673582223830,34.7986391,16.667,16.66,16.44]
[1673582225096,34.7986391,16.667,16.66,81.98]
[1673582225298,34.7986391,16.667,16.661,11.92]
[1673582225715,34.7986391,16.667,16.662,10.0]
[1673582225930,34.7986391,16.667,16.663,1.92]
[1673582227177,27.6127391,16.667,16.663,1.92]
[1673582231191,139.72,16.67,16.664,10.0]
[1673582231400,139.72,16.67,16.665,21.92]
[1673582231610,139.72,16.67,16.666,10.0]
[1673582231816,139.72,16.67,16.667,1.92]
[1673582232971,139.72,16.67,16.666,10.0]
[1673582234354,139.72,16.67,16.667,1.92]
[1673582235089,139.72,16.67,16.666,10.0]
[1673582235304,139.72,16.67,16.66,26.44]
[1673582235511,139.72,16.67,16.655,120.9209]
[1673582235933,10.0,16.669,16.655,120.9209]
[1673582236131,117.6701,16.668,16.655,120.9209]
[1673582238133,117.6701,16.668,16.657,1.92]
[1673582238748,117.6701,16.668,16.655,120.9209]
[1673582240472,117.6701,16.668,16.657,1.92]
[1673582242229,117.6701,16.668,16.658,10.0]
[1673582242436,117.6701,16.668,16.659,0.96]
[1673582244258,117.6701,16.668,16.658,10.0]
[1673582245494,117.6701,16.668,16.655,120.9209]
[1673582245698,10.0,16.667,16.652,10.0]
[1673582245909,10.0,16.667,16.653,20.0]
[1673582246341,117.6701,16.668,16.653,20.0]
[1673582246858,117.6701,16.668,16.654,10.0]
[1673582247072,139.72,16.67,16.66,16.39]
[1673582251383,139.72,16.67,16.661,1.92]
[1673582252311,139.72,16.67,16.661,11.92]
[1673582254092,139.72,16.67,16.662,20.0]
[1673582254310,139.72,16.67,16.663,0.96]
[1673582254516,139.72,16.67,16.663,30.19070411]
[1673582254733,139.72,16.67,16.664,30.0]
[1673582254962,139.72,16.67,16.665,10.96]
[1673582255158,139.72,16.67,16.666,0.96]
[1673582255360,23.985089,16.685,16.667,0.96]
[1673582255578,23.985089,16.685,16.671,10.0]
[1673582255781,23.985089,16.685,16.672,20.96]
[1673582255991,23.985089,16.685,16.672,21.92]
[1673582256217,23.985089,16.685,16.673,10.0]
[1673582256423,23.985089,16.685,16.674,1.92]
[1673582256635,23.985089,16.685,16.674,21.92]
[1673582258210,23.985089,16.685,16.675,10.0]
[1673582258422,23.985089,16.685,16.676,1.92]
[1673582261144,1.27856634,16.706,16.678,181.7]
[1673582261356,114.6347,16.704,16.69,16.29]
[1673582261773,114.6347,16.704,16.691,0.96]
[1673582261997,114.6347,16.704,16.69,16.29]
[1673582262195,114.6347,16.704,16.691,0.96]
[1673582262401,114.6347,16.704,16.692,0.96]
[1673582262622,10.0,16.703,16.691,49.23070411]
[1673582262930,114.6347,16.704,16.69,16.25]
[1673582263158,114.6347,16.704,16.691,20.96]
[1673582263364,114.6347,16.704,16.692,0.96]
[1673582263575,114.6347,16.704,16.684,183.61228501]
[1673582263576,16.39,16.7,16.675,10.0]
[1673582263991,10.0,16.698,16.675,10.0]
[1673582264215,116.2901,16.699,16.68,16.38]
[1673582264821,10.0,16.698,16.68,16.38]
[1673582266420,10.0,16.698,16.681,29.24147552]
[1673582266628,10.0,16.698,16.682,10.0]
[1673582267450,10.0,16.698,16.68,16.38]
[1673582268080,10.0,16.698,16.681,29.24147552]
[1673582268510,10.0,16.698,16.68,16.38]
[1673582268720,10.0,16.698,16.681,0.96]
[1673582268921,10.0,16.698,16.682,0.96]
[1673582269361,10.0,16.698,16.683,0.96]
[1673582269659,10.0,16.698,16.681,0.96]
[1673582269870,116.2901,16.699,16.685,10.0]
[1673582270205,116.2901,16.699,16.686,0.96]
[1673582270400,116.2901,16.699,16.687,0.96]
[1673582270611,116.2901,16.699,16.688,0.96]
[1673582270937,116.2901,16.699,16.689,0.96]
[1673582271338,10.0,16.698,16.683,10.0]
[1673582271566,10.0,16.698,16.684,20.0]
[1673582271754,10.0,16.698,16.685,1.92]
[1673582272176,10.0,16.698,16.684,20.0]
[1673582272406,30.46683801,16.703,16.683,20.0]
[1673582272617,104.3091151,16.709,16.69,263.46]
[1673582272811,80.3530121,16.709,16.7,16.34]
[1673582273459,80.3530121,16.709,16.701,0.96]
[1673582274196,80.3530121,16.709,16.7,16.34]
[1673582274414,80.3530121,16.709,16.701,0.96]
[1673582274733,80.3530121,16.709,16.702,0.96]
[1673582274941,80.3530121,16.709,16.703,0.96]
[1673582275146,30.46683801,16.705,16.683,20.0]
[1673582275346,30.46683801,16.705,16.684,10.0]
[1673582275554,10.0,16.708,16.684,10.0]
[1673582275784,31.74540435,16.706,16.684,10.0]
[1673582276097,10.0,16.705,16.684,5.0]
[1673582276287,128.7484,16.705,16.684,5.0]
[1673582276499,159.21523801,16.705,16.684,5.0]
[1673582277249,149.21523801,16.705,16.684,25.0]
[1673582277466,149.21523801,16.705,16.685,10.0]
[1673582277467,118.7484,16.705,16.685,10.0]
[1673582277655,118.7484,16.705,16.69,16.26]
[1673582278193,1.27856634,16.706,16.691,0.96]
[1673582278399,1.27856634,16.706,16.692,0.96]
[1673582278621,1.27856634,16.706,16.693,0.96]
[1673582279354,1.27856634,16.706,16.694,0.96]
[1673582279559,1.27856634,16.706,16.695,0.96]
[1673582279774,1.27856634,16.706,16.695,10.96]
[1673582279964,1.27856634,16.706,16.696,0.96]
[1673582280173,1.27856634,16.706,16.697,0.96]
[1673582280404,1.27856634,16.706,16.7,16.29]
[1673582280824,1.27856634,16.706,16.701,1.92]
[1673582281009,80.3530121,16.709,16.7,16.29]
[1673582281226,80.3530121,16.709,16.701,31.92]
[1673582281435,80.3530121,16.709,16.702,10.0]
[1673582281666,80.3530121,16.709,16.703,20.96]
[1673582281977,80.3530121,16.709,16.704,0.96]
[1673582282169,80.3530121,16.709,16.705,0.96]
[1673582283227,80.3530121,16.709,16.705,0.65408]
[1673582283438,80.3530121,16.709,16.706,0.96]
[1673582285341,80.3530121,16.709,16.707,0.96]
[1673582285749,80.3530121,16.709,16.702,20.0]
[1673582285959,80.3530121,16.709,16.693,10.0]
[1673582286168,10.0,16.708,16.7,16.44]
[1673582288168,80.3530121,16.709,16.7,16.44]
[1673582288807,10.0,16.708,16.692,111.2855]
[1673582289546,10.0,16.708,16.693,30.0]
[1673582290171,10.0,16.708,16.694,0.96]
[1673582290704,80.3530121,16.709,16.694,0.96]
[1673582291116,80.3530121,16.709,16.695,0.96]
[1673582291442,80.3530121,16.709,16.696,0.96]
[1673582291638,80.3530121,16.709,16.697,0.96]
[1673582291840,10.0,16.708,16.697,0.96]
[1673582292261,10.0,16.708,16.695,20.0]
[1673582292811,10.0,16.708,16.693,20.0]
[1673582293529,10.0,16.729,16.701,181.7]
[1673582293732,10.0,16.729,16.71,32.73]
[1673582293733,115.2992,16.722,16.71,32.73]
[1673582294258,115.9251,16.73,16.712,10.0]
[1673582294477,126.9248,16.74,16.713,20.96]
[1673582294691,126.9248,16.74,16.72,16.38]
[1673582294900,10.0,16.73,16.72,16.38]
[1673582295643,10.0,16.725,16.71,16.26]
[1673582296378,19.4257775,16.726,16.71,16.26]
[1673582296696,43.3511515,16.726,16.71,16.26]
[1673582297130,43.3511515,16.726,16.711,0.96]
[1673582297333,43.3511515,16.726,16.712,0.96]
[1673582297526,43.3511515,16.726,16.713,0.96]
[1673582298374,43.3511515,16.726,16.713,10.96]
[1673582298595,43.3511515,16.726,16.714,20.0]
[1673582298915,43.3511515,16.726,16.72,24.37]
[1673582300588,43.3511515,16.726,16.721,0.96]
[1673582301121,43.3511515,16.726,16.72,24.37]
[1673582303432,43.3511515,16.726,16.714,19.69473]
[1673582305107,43.3511515,16.726,16.71,131.93]
[1673582305108,43.3511515,16.726,16.712,20.0]
[1673582306048,10.0,16.725,16.711,20.0]
[1673582307633,9.5,16.725,16.71,24.45]
[1673582311320,0.96,16.724,16.71,24.45]
[1673582311527,10.0,16.723,16.703,118.0974]
[1673582311738,115.503,16.722,16.704,20.0]
[1673582311937,10.0,16.721,16.704,20.0]
[1673582313523,10.0,16.721,16.705,10.0]
[1673582314138,10.0,16.721,16.704,20.0]
[1673582316263,10.0,16.721,16.705,0.96]
[1673582316868,10.0,16.719,16.704,20.0]
[1673582317085,10.0,16.719,16.7,121.75]
[1673582317392,0.96,16.718,16.7,24.27]
[1673582317924,10.0,16.72,16.7,24.27]
[1673582318253,108.3399,16.721,16.701,29.24147552]
[1673582318452,10.0,16.72,16.701,108.6387]
[1673582318787,0.96,16.719,16.7,121.86]
[1673582318998,10.0,16.718,16.701,20.0]
[1673582319330,0.96,16.717,16.7,24.38]
[1673582319543,10.0,16.716,16.7,24.38]
[1673582319852,0.96,16.715,16.7,24.38]
[1673582320068,0.96,16.715,16.7,22.78]
[1673582321112,17.96,16.715,16.694,109.1886]
[1673582321328,17.96,16.715,16.695,20.0]
[1673582321539,17.96,16.715,16.69,223.0286]
[1673582321752,17.96,16.715,16.69,132.1686]
[1673582322062,10.0,16.714,16.69,132.1686]
[1673582322254,0.96,16.713,16.69,132.1686]
[1673582322462,0.96,16.713,16.691,29.24147552]
[1673582322675,17.96,16.713,16.691,29.24147552]
[1673582322895,228.9954,16.713,16.69,132.1686]
[1673582323117,228.9954,16.713,16.692,10.0]
[1673582323306,228.9954,16.713,16.693,20.0]
[1673582323515,228.9954,16.713,16.694,10.0]
[1673582323748,228.9954,16.713,16.695,20.0]
[1673582323960,228.9954,16.713,16.695,49.24147552]
[1673582324174,109.519,16.713,16.7,113.94]
[1673582324482,109.519,16.713,16.701,20.0]
[1673582324880,10.0,16.721,16.702,11.92]
[1673582325091,10.0,16.736,16.703,30.0]
[1673582325301,108.633,16.724,16.71,22.59]
[1673582325513,108.633,16.724,16.711,1.92]
[1673582327005,19.4257775,16.726,16.711,1.92]
[1673582327218,19.4257775,16.726,16.711,21.92]
[1673582327615,19.4257775,16.726,16.712,10.0]
[1673582327826,19.4257775,16.726,16.713,0.96]
[1673582328037,19.4257775,16.726,16.713,20.96]
[1673582328259,19.4257775,16.726,16.714,115.17785435]
[1673582328467,111.5552,16.749,16.715,14.92999]
[1673582328679,111.5552,16.749,16.716,24.92969]
[1673582328888,10.0,16.748,16.717,14.9294]
[1673582329212,10.0,16.748,16.73,22.75]
[1673582329651,10.0,16.748,16.731,21.92]
[1673582329842,10.0,16.748,16.731,51.16147552]
[1673582330164,111.5552,16.749,16.732,39.24147552]
[1673582330380,23.893133,16.751,16.733,21.92]
[1673582330591,23.893133,16.751,16.74,22.54]
[1673582330911,10.0,16.75,16.734,29.24147552]
[1673582331125,10.0,16.75,16.735,20.0]
[1673582331643,20.0,16.749,16.73,22.89]
[1673582331858,10.0,16.748,16.73,22.89]
[1673582332596,10.0,16.745,16.73,22.89]
[1673582332899,10.0,16.743,16.73,22.89]
[1673582333116,10.0,16.743,16.72,123.73]
[1673582333324,17.96,16.742,16.72,123.71]
[1673582333514,10.0,16.741,16.72,123.71]
[1673582333736,118.2805,16.74,16.72,123.71]
[1673582333952,10.0,16.739,16.722,29.24147552]
[1673582334171,10.0,16.739,16.723,20.0]
[1673582334795,17.96,16.738,16.722,20.0]
[1673582335325,17.96,16.738,16.72,22.89]
[1673582335516,10.0,16.737,16.72,22.89]
[1673582336141,118.2805,16.74,16.721,29.24147552]
[1673582336790,118.2805,16.74,16.722,10.0]
[1673582337190,118.2805,16.74,16.723,29.24147552]
[1673582337413,118.2805,16.74,16.724,1.92]
[1673582337622,118.2805,16.74,16.724,21.92]
[1673582337836,118.2805,16.74,16.725,29.24147552]
[1673582338059,10.0,16.739,16.72,113.71]
[1673582338264,30.0,16.739,16.72,22.71]
[1673582338471,118.2805,16.74,16.72,22.73]
[1673582338685,118.2805,16.74,16.722,10.0]
[1673582338872,118.2805,16.74,16.73,113.75]
[1673582339084,118.2805,16.74,16.73,113.92]
[1673582339319,118.2805,16.74,16.731,1.92]
[1673582340049,3.09469,16.746,16.731,1.92]
[1673582340242,3.09469,16.746,16.731,11.92]
[1673582340459,3.09469,16.746,16.731,1.92]
[1673582340870,3.09469,16.746,16.73,113.92]
[1673582341075,3.09469,16.746,16.724,41.51417013]
[1673582341305,3.09469,16.746,16.725,20.0]
[1673582341523,3.09469,16.746,16.726,10.0]
[1673582342132,3.09469,16.746,16.731,10.0]
[1673582342447,3.09469,16.746,16.74,22.57]
[1673582342768,3.09469,16.746,16.741,1.92]
[1673582343096,3.09469,16.746,16.74,22.57]
[1673582343813,3.09469,16.746,16.741,0.96]
[1673582344241,3.09469,16.746,16.74,22.57]
[1673582344875,3.09469,16.746,16.741,0.96]
[1673582345088,3.09469,16.746,16.74,22.57]
[1673582346348,33.886565,16.757,16.74,22.57]
[1673582346553,23.886565,16.757,16.742,10.0]
[1673582346769,23.886565,16.757,16.743,25.88174]
[1673582346967,23.886565,16.757,16.744,14.92145]
[1673582347180,23.886565,16.757,16.745,25.88116]
[1673582347400,23.886565,16.757,16.746,5.88086]
[1673582347616,23.886565,16.757,16.75,113.75]
[1673582347803,23.886565,16.757,16.751,20.96]
[1673582348226,23.886565,16.757,16.752,10.0]
[1673582348454,23.886565,16.757,16.753,20.0]
[1673582348657,23.886565,16.757,16.754,10.0]
[1673582348873,23.886565,16.757,16.742,10.0]
[1673582349614,23.886565,16.757,16.744,10.0]
[1673582350126,23.886565,16.757,16.745,29.24147552]
[1673582350760,23.886565,16.757,16.746,0.96]
[1673582351295,23.886565,16.757,16.747,30.20147552]
[1673582351494,23.886565,16.757,16.748,0.96]
[1673582351705,23.886565,16.757,16.748,30.20147552]
[1673582352022,23.886565,16.757,16.748,29.24147552]
[1673582353063,23.886565,16.757,16.744,10.0]
[1673582353285,23.886565,16.757,16.745,78.48295104]
[1673582353495,23.886565,16.757,16.745,49.24147552]
[1673582353726,23.886565,16.757,16.746,29.24147552]
[1673582354129,23.886565,16.757,16.745,20.0]
[1673582354454,10.0,16.756,16.743,20.0]
[1673582354666,23.886565,16.757,16.741,20.0]
[1673582354882,23.886565,16.757,16.742,10.0]
[1673582355077,23.886565,16.757,16.744,29.24147552]
[1673582355283,23.886565,16.757,16.745,20.0]
[1673582355495,23.886565,16.757,16.744,29.24147552]
[1673582355700,10.0,16.76,16.745,49.24147552]
[1673582356763,10.0,16.76,16.746,0.96]
[1673582357192,10.0,16.76,16.746,30.20147552]
[1673582357614,116.0031,16.761,16.746,30.20147552]
[1673582357827,116.0031,16.761,16.746,29.24147552]
[1673582358142,10.0,16.76,16.745,20.0]
[1673582358328,10.0,16.76,16.742,10.0]
[1673582358329,10.0,16.76,16.743,49.24147552]
[1673582358539,10.0,16.76,16.744,29.24147552]
[1673582358751,10.0,16.76,16.745,20.0]
[1673582359401,10.0,16.76,16.745,49.24147552]
[1673582359619,10.0,16.76,16.741,10.0]
[1673582359811,37.96,16.759,16.74,51.89147552]
[1673582360017,10.0,16.758,16.74,51.89147552]
[1673582360349,124.5071,16.758,16.74,51.89147552]
[1673582360548,10.0,16.757,16.74,51.89147552]
[1673582360765,10.0,16.757,16.74,22.65]
[1673582361401,10.0,16.757,16.74,51.89147552]
[1673582362658,10.0,16.757,16.74,22.65]
[1673582362869,17.96,16.756,16.732,10.0]
[1673582363079,17.96,16.756,16.733,139.7195]
[1673582363274,10.0,16.755,16.734,10.0]
[1673582363481,17.0,16.754,16.73,22.71]
[1673582363690,10.0,16.752,16.73,22.71]
[1673582363924,37.96,16.751,16.73,22.71]
[1673582364116,180.38207749,16.751,16.73,22.71]
[1673582364331,40.46683801,16.75,16.73,22.71]
[1673582364552,37.96,16.749,16.73,22.71]
[1673582364887,10.0,16.748,16.73,22.71]
[1673582365065,10.0,16.746,16.73,22.71]
[1673582365281,0.96,16.745,16.73,22.71]
[1673582365490,0.96,16.745,16.724,10.0]
[1673582365491,17.96,16.745,16.724,10.0]
[1673582365724,10.0,16.744,16.724,10.0]
[1673582365924,17.96,16.743,16.723,119.7195]
[1673582366124,17.96,16.743,16.721,10.0]
[1673582366334,10.0,16.742,16.722,20.0]
[1673582366559,17.0,16.741,16.722,20.0]
[1673582366772,0.96,16.74,16.722,20.0]
[1673582366963,10.0,16.739,16.722,20.0]
[1673582367176,17.0,16.738,16.722,20.0]
[1673582367385,10.0,16.739,16.722,20.0]
[1673582367819,118.743,16.74,16.722,20.0]
[1673582368138,118.743,16.74,16.73,22.54]
[1673582368757,128.4182,16.749,16.731,0.96]
[1673582368967,10.0,16.748,16.731,0.96]
[1673582369815,108.4182,16.749,16.731,0.96]
[1673582370013,10.0,16.748,16.731,20.96]
[1673582370217,10.0,16.748,16.73,22.54]
[1673582370428,40.46683801,16.748,16.73,22.54]
[1673582370640,10.0,16.747,16.73,22.54]
[1673582371276,0.96,16.746,16.73,22.54]
[1673582371482,17.96,16.746,16.73,22.54]
[1673582371702,10.0,16.745,16.73,22.54]
[1673582371942,17.96,16.744,16.73,22.54]
[1673582372125,17.96,16.744,16.726,10.0]
[1673582372327,10.0,16.743,16.724,10.0]
[1673582372536,10.0,16.743,16.725,20.0]
[1673582373587,10.0,16.743,16.726,1.92]
[1673582374224,10.0,16.743,16.725,20.0]
[1673582374448,17.96,16.742,16.724,20.0]
[1673582374866,10.0,16.743,16.724,20.0]
[1673582375274,0.96,16.742,16.724,20.0]
[1673582375482,17.96,16.742,16.724,20.0]
[1673582375715,17.96,16.742,16.722,20.0]
[1673582375922,137.755,16.742,16.722,20.0]
[1673582376136,10.0,16.741,16.722,20.0]
[1673582376342,17.96,16.74,16.722,20.0]
[1673582376552,10.0,16.739,16.722,20.0]
[1673582376758,10.0,16.739,16.72,22.73]
[1673582376973,17.96,16.738,16.72,22.73]
[1673582377168,10.0,16.737,16.72,22.73]
[1673582378742,17.0,16.736,16.715,109.9705]
[1673582378957,10.0,16.735,16.715,109.9705]
[1673582379507,17.96,16.734,16.711,10.0]